fUSD/lending_fUSD_20240419
["ID","MTS","AMOUNT","RATE_DAILY","PERIOD"]
[322925056,1713521442871,-15.750002,0.00016178,2]
[322925057,1713521442883,-281.77533193,0.00016178,2]
[322925058,1713521442901,-333.86204853,0.00016178,2]
[322925059,1713521442910,-186.45589413,0.00016178,2]
[322925060,1713521442921,-173.45241683,0.00016178,2]
[322925061,1713521442930,-155.0,0.00016178,2]
[322925062,1713521442940,-162.90177364,0.00016178,2]
[322925063,1713521442949,-200.0,0.00016179,2]
[322925064,1713521442958,-151.041916,0.00016179,2]
[322925065,1713521442968,-151.041916,0.00016179,2]
[322925066,1713521442977,-12213.51816364,0.00016179,2]
[322925075,1713521445780,-973.0,0.00016164,2]
[322925076,1713521445789,-18772.16830214,0.00016179,2]
[322925077,1713521445800,-307.44854805,0.00016179,2]
[322925078,1713521445811,-4705.90212417,0.00016179,2]
[322925079,1713521445821,-999.51691893,0.00016179,2]
[322925080,1713521445832,-995.09640747,0.0001618,2]
[322925081,1713521445894,-1718.67884822,0.0001618,2]
[322925094,1713521445995,-1303.56815095,0.0001618,2]
[322925098,1713521446006,-522.10336086,0.0001618,2]
[322925111,1713521446085,-43128.28686146,0.0001618,2]
[322925113,1713521446096,-3648.58680476,0.0001618,2]
[322925115,1713521446107,-3654.00003,0.0001618,2]
[322925123,1713521446170,-34399.49595402,0.0001618,2]
[322925125,1713521446181,-2741.20162565,0.0001618,2]
[322925130,1713521446215,-540.1715431,0.0001618,2]
[322927340,1713521468499,164.44,0.00015402,2]
[322928809,1713521483527,164.08,0.0001611,15]
[322929507,1713521498795,150.0,0.000155,2]
[322929508,1713521649934,299.35,0.00013218,2]
[322929509,1713521650136,299.35,0.00015482,2]
[322929510,1713521665018,500.0,0.00015399,2]
[322929511,1713521665795,500.0,0.00015399,2]
[322929512,1713521666667,500.0,0.00015399,2]
[322929513,1713521667305,500.0,0.00015399,2]
[322929514,1713521668105,500.0,0.00015399,2]
[322929515,1713521668859,500.0,0.00015399,2]
[322929516,1713521669969,500.0,0.00015399,2]
[322929517,1713521670579,500.0,0.00015399,2]
[322929518,1713521671182,500.0,0.00015399,2]
[322929519,1713521671972,500.0,0.00015399,2]
[322929520,1713521672834,500.0,0.00015399,2]
[322929521,1713521673567,500.0,0.00015399,2]
[322929522,1713521674363,500.0,0.00015399,2]
[322929523,1713521675096,500.0,0.00015399,2]
[322929524,1713521676362,500.0,0.00015399,2]
[322929525,1713521676957,500.0,0.00015399,2]
[322929526,1713521677711,500.0,0.00015399,2]
[322929527,1713521678513,500.0,0.00015399,2]
[322929528,1713521679286,500.0,0.00015399,2]
[322929529,1713521681040,500.0,0.00015399,2]
[322929530,1713521681454,500.0,0.00015399,2]
[322929531,1713521681975,501.78,0.00015399,2]
[322929532,1713521686850,11586.57,0.00015122,2]
[322929533,1713521690238,301.84111316,0.00015398,2]
[322929534,1713521748326,500.0,0.00015399,2]
[322929535,1713521748694,20000.0,0.00023,30]
[322929536,1713521748753,500.0,0.00015399,2]
[322929537,1713521749277,500.0,0.00015399,2]
[322929538,1713521749819,500.0,0.00015399,2]
[322929539,1713521750995,500.0,0.00015399,2]
[322929540,1713521751624,500.0,0.00015399,2]
[322929541,1713521752393,500.0,0.00015399,2]
[322929542,1713521753164,500.0,0.00015399,2]
[322929543,1713521753946,500.0,0.00015399,2]
[322929544,1713521754727,500.0,0.00015399,2]
[322929545,1713521755671,500.0,0.00015399,2]
[322929546,1713521756622,500.0,0.00015399,2]
[322929547,1713521757347,500.0,0.00015399,2]
[322929548,1713521758967,500.0,0.00015399,2]
[322929549,1713521759434,500.0,0.00015399,2]
[322929550,1713521759995,500.0,0.00015399,2]
[322929551,1713521760758,500.0,0.00015399,2]
[322929552,1713521761540,500.0,0.00015399,2]
[322929553,1713521762657,500.0,0.00015399,2]
[322929554,1713521763441,500.0,0.00015399,2]
[322929555,1713521764210,500.0,0.00015399,2]
[322929556,1713521764921,167.78,0.00015114,2]
[322929557,1713521767034,500.0,0.00015399,2]
[322929558,1713521768131,500.0,0.00015399,2]
[322929559,1713521769693,500.0,0.00015399,2]
[322929560,1713521799438,150.0,0.000155,2]
[322929561,1713521844459,554.48,0.00015108,2]
[322929563,1713522040539,164.44,0.0001522,2]
[322929564,1713522040766,164.44,0.00015379,2]
[322929565,1713522095428,164.08,0.0001611,15]
[322929566,1713522104414,150.0,0.000155,2]
[322929567,1713522163088,161.47439017,0.00015434,2]
[322929568,1713522190562,3180.18036638,0.00015362,2]
[322929569,1713522269222,269.41,0.00013238,2]
[322929570,1713522269426,269.41,0.00015501,2]
[322929572,1713522364462,556.41,0.00015151,2]
[322929573,1713522399652,150.0,0.000155,2]
[322929575,1713522593986,164.08,0.0001611,15]
[322929576,1713522600283,164.44,0.00015274,2]
[322929589,1713522632497,-6804.4692787,0.00015534,2]
[322929590,1713522632507,-164.44,0.0001554,2]
[322929591,1713522632516,-2172.87463985,0.00015668,2]
[322929592,1713522632525,-164.44,0.00015805,2]
[322929593,1713522632534,-150.0,0.0001583,2]
[322929594,1713522632544,-167.0,0.00015831,2]
[322929595,1713522632553,-241.224371,0.0001589,2]
[322929596,1713522632564,-3634.0104,0.0001599,2]
[322929597,1713522632572,-395.9848,0.00016,2]
[322929598,1713522632582,-1000.0,0.00016,2]
[322929599,1713522632591,-150.0,0.00016,2]
[322929600,1713522632599,-155.0,0.00016,2]
[322929601,1713522632609,-772.07061,0.0001602,2]
[322929602,1713522632618,-500.0,0.0001605,2]
[322929603,1713522632627,-200.0,0.00016051,2]
[322929604,1713522632636,-1000.0,0.00016051,2]
[322929605,1713522632646,-500.0,0.00016051,2]
[322929606,1713522632655,-500.0,0.00016051,2]
[322929607,1713522632664,-200.0,0.00016051,2]
[322929608,1713522632673,-164.44,0.0001607,2]
[322929609,1713522632683,-359.6044,0.00016073,2]
[322929610,1713522632692,-3045.95153263,0.00016087,2]
[322929611,1713522632701,-11729.21953381,0.00016099,2]
[322929612,1713522633048,-5538.83056235,0.00016162,4]
[322929613,1713522633060,-533.0,0.00016164,2]
[322929614,1713522633069,-43286.1679999,0.00016172,2]
[322929615,1713522633078,-6798.3227853,0.00016176,2]
[322929616,1713522633087,-4777.9276543,0.00016176,2]
[322929617,1713522633096,-1419.1283565,0.00016176,2]
[322929618,1713522633105,-351.9652824,0.00016178,2]
[322929619,1713522633114,-155.78220121,0.00016178,2]
[322929620,1713522633123,-155.30881091,0.00016178,2]
[322929621,1713522633133,-1330.78073568,0.00016179,2]
[322929622,1713522633142,-246380.03201507,0.0001618,2]
[322929623,1713522633214,-886.5280874,0.0001618,2]
[322929624,1713522633225,-1077.8,0.0001618,2]
[322929671,1713522638028,-126481.06640261,0.0001618,2]
[322929676,1713522638083,-6196.3,0.0001618,2]
[322929679,1713522638095,-20045.1978705,0.0001618,2]
[322929710,1713522639725,-494.7269641,0.00016179,2]
[322929711,1713522639737,-170.66340375,0.00016179,2]
[322929712,1713522639746,-1179.76416825,0.0001618,2]
[322929713,1713522640001,-21420.17090539,0.0001618,2]
[322929715,1713522640010,-24610.4557892,0.00016187,2]
[322929749,1713522643428,-18589.6562108,0.00016187,2]
[322929750,1713522643437,-13556.6590862,0.00016187,2]
[322929751,1713522643446,-3045.9515326,0.00016189,2]
[322929752,1713522643455,-152.72,0.0001619,2]
[322929753,1713522643464,-192.46391051,0.00016198,2]
[322929754,1713522643474,-684.35779044,0.00016198,2]
[322929755,1713522643484,-1866.30633727,0.00016198,2]
[322929756,1713522643493,-91971.84729656,0.000162,4]
[322929757,1713522643502,-636.0,0.000162,2]
[322929758,1713522643511,-482.0,0.000162,2]
[322929759,1713522643520,-2066.0,0.000162,2]
[322929760,1713522643529,-154.17258646,0.000162,2]
[322929761,1713522643538,-300.98,0.000162,2]
[322929762,1713522643547,-412.89,0.000162,2]
[322929763,1713522643556,-350.16,0.000162,2]
[322929764,1713522643567,-160.2,0.000162,2]
[322929765,1713522643576,-151.0,0.000162,2]
[322929766,1713522643585,-521.73,0.000162,2]
[322929767,1713522643594,-150.0,0.000162,2]
[322929768,1713522643603,-153.13,0.000162,2]
[322929769,1713522643613,-418.88,0.000162,2]
[322929770,1713522643622,-166.55,0.000162,2]
[322929771,1713522643631,-350.23,0.000162,2]
[322929772,1713522643641,-150.0,0.000162,2]
[322929773,1713522643651,-350.23,0.000162,2]
[322929774,1713522643660,-12007.36830878,0.000162,2]
[322929775,1713522643670,-150.0,0.000162,2]
[322929776,1713522643680,-337.23,0.000162,2]
[322929777,1713522643689,-150.0,0.000162,2]
[322929778,1713522643698,-150.0,0.000162,2]
[322929779,1713522643707,-5717.0,0.00016212,2]
[322929780,1713522643716,-27704.286,0.00016212,2]
[322929781,1713522643726,-340.426,0.00016212,2]
[322929782,1713522643735,-214.0,0.00016212,2]
[322929783,1713522643745,-251.08783605,0.00016233,2]
[322929784,1713522643754,-288.0,0.0001626,2]
[322929785,1713522643763,-3701.115,0.00016264,2]
[322929786,1713522643772,-3045.9515326,0.00016291,2]
[322929787,1713522643782,-155.75757922,0.00016299,2]
[322929788,1713522643791,-156.97672194,0.00016299,2]
[322929789,1713522643800,-300.0,0.00016299,2]
[322929790,1713522643809,-300.0,0.00016299,2]
[322929791,1713522643820,-300.0,0.00016299,2]
[322929792,1713522643829,-300.0,0.00016299,2]
[322929793,1713522643838,-300.0,0.00016299,2]
[322929794,1713522643847,-300.0,0.00016299,2]
[322929795,1713522643856,-1510.54979598,0.00016299,2]
[322929796,1713522643865,-418.07124648,0.00016299,2]
[322929797,1713522643875,-557.93633729,0.00016299,2]
[322929798,1713522643884,-172.68164504,0.00016299,2]
[322929799,1713522643893,-3684.855,0.000163,2]
[322929800,1713522643903,-117127.59224583,0.000163,4]
[322929801,1713522643915,-489.93368078,0.000163,4]
[322929802,1713522643926,-814.54165487,0.000163,4]
[322929803,1713522644048,-1334.87114,0.000163,4]
[322929815,1713522646187,-665.39036784,0.00016179,2]
[322929816,1713522646197,-1140.0,0.00016212,2]
[322929817,1713522646206,-355.0,0.00016212,2]
[322929818,1713522646215,-174559.25570635,0.000163,4]
[322929819,1713522646344,-1173.81631091,0.000163,4]
[322929820,1713522669641,1283.11977985,0.00015499,2]
[322929821,1713522699278,1250.0,0.00015,2]
[322929822,1713522700270,150.0,0.000155,2]
[322929823,1713522742771,255.43,0.00013428,2]
[322929824,1713522792540,160.0,0.000282,120]
[322929828,1713522854889,174.07,0.00015303,2]
[322929829,1713522869581,554.87,0.00015304,2]
[322929830,1713522941699,154.17258646,0.00015423,2]
[322929831,1713522978359,4000.0,0.00019,30]
[322929832,1713522998536,150.0,0.000155,2]
[322929833,1713523008163,279.50395528,0.00015424,2]
[322929834,1713523012411,1007.03319732,0.00015424,2]
[322929835,1713523021887,252.57515065,0.00015424,2]
[322929836,1713523035873,371.95755818,0.00015431,2]
[322929837,1713523136542,421.56509118,0.00015431,2]
[322929838,1713523154490,1982.76495454,0.00015431,2]
[322929839,1713523158070,671.35546488,0.00015431,2]
[322929840,1713523159420,1982.76495451,0.00015498,2]
[322929841,1713523169141,186.33597018,0.00015431,2]
[322929842,1713523176756,247.97170546,0.00015431,2]
[322929843,1713523198359,164.08,0.0001611,15]
[322929844,1713523221073,255.59,0.00013117,2]
[322929845,1713523221294,255.59,0.00015381,2]
[322929846,1713523273020,281.04339412,0.00015431,2]
[322929847,1713523284785,168.38343378,0.00015431,2]
[322929848,1713523291903,3774.89492129,0.00015502,2]
[322929849,1713523294377,447.57030992,0.00015431,2]
[322929850,1713523298936,150.0,0.000155,2]
[322929851,1713523313788,165.3144703,0.00015431,2]
[322929852,1713523328204,186.33597018,0.00015431,2]
[322929853,1713523331526,155.0,0.00015502,2]
[322929854,1713523408671,187.36226276,0.00015431,2]
[322929855,1713523419807,1487.0737159,0.00015431,2]
[322929856,1713523425130,1487.07371588,0.00015498,2]
[322929857,1713523428758,298.3802066,0.00015431,2]
[322929858,1713523436470,556.1,0.00015218,2]
[322929859,1713523439234,780.96848373,0.00015497,2]
[322929861,1713523480469,186.33597018,0.0001543,2]
[322929862,1713523513204,150.0,0.00015479,2]
[322929863,1713523569081,198.92013774,0.0001543,2]
[322929864,1713523598867,150.0,0.000155,2]
[322929865,1713523629189,266.14996478,0.00015364,2]
[322929866,1713523677468,10000.0,0.000155,2]
[322929867,1713523692485,1281.825618,0.0001543,2]
[322929868,1713523697487,1281.825618,0.00015497,2]
[322929869,1713523735892,242.3,0.00012976,2]
[322929870,1713523736346,242.3,0.0001524,2]
[322929877,1713523807254,11446.77193505,0.00015429,2]
[322929892,1713523831848,-452.76166978,0.00015509,2]
[322929893,1713523831857,-1043.30872985,0.0001551,2]
[322929894,1713523831868,-152.73,0.00015512,2]
[322929895,1713523831877,-152.73,0.00015512,2]
[322929896,1713523831887,-152.73,0.00015512,2]
[322929897,1713523831896,-805.67,0.00015512,3]
[322929898,1713523831905,-150.0,0.00015519,2]
[322929899,1713523831915,-150.0,0.00015519,2]
[322929900,1713523831924,-3786.0795687,0.0001552,2]
[322929901,1713523831933,-156.30866267,0.0001552,2]
[322929902,1713523831943,-478.95207823,0.0001552,2]
[322929903,1713523831953,-442.15495505,0.0001552,2]
[322929904,1713523831962,-1730.10191978,0.0001552,2]
[322929905,1713523831978,-253.083484,0.0001552,2]
[322929906,1713523831994,-231.2798292,0.0001552,2]
[322929907,1713523832003,-158.62060924,0.0001552,2]
[322929908,1713523832012,-1311.36561223,0.0001552,2]
[322929909,1713523832045,-131.20219303,0.0001552,2]
[322929910,1713523832054,-201.80575452,0.0001552,2]
[322929911,1713523832073,-279.69657276,0.0001552,2]
[322929912,1713523832085,-1098.8377003,0.0001552,2]
[322929913,1713523832097,-273.17705773,0.0001552,2]
[322929914,1713523832106,-631.99971504,0.0001552,2]
[322929915,1713523832118,-1221.49028496,0.0001552,2]
[322929916,1713523832127,-1853.49,0.0001552,2]
[322929917,1713523832136,-289.36892805,0.00015521,2]
[322929924,1713523832293,-10.63107195,0.00015521,2]
[322929926,1713523832302,-300.0,0.00015521,2]
[322929928,1713523832311,-300.0,0.00015521,2]
[322929930,1713523832321,-300.0,0.00015521,2]
[322929932,1713523832330,-370.94943444,0.00015521,5]
[322929933,1713523832339,-65575.50700422,0.00015522,2]
[322929935,1713523832351,-3571.84322377,0.00015522,2]
[322929938,1713523832799,-149143.66331169,0.00015522,2]
[322929939,1713523832827,-448.74875887,0.00015522,2]
[322929940,1713523832872,-255.97559429,0.00015522,2]
[322929964,1713523838784,-6179.19999998,0.00015522,2]
[322929965,1713523838815,-125876.17019996,0.00015522,2]
[322929982,1713523839994,-257.6476824,0.0001552,2]
[322929983,1713523840085,-1348.1827836,0.0001552,2]
[322929984,1713523840095,-238388.76083956,0.00015522,2]
[322929985,1713523840106,-96789.33624704,0.00015522,2]
[322929986,1713523840117,-1545.88121157,0.00015522,2]
[322929987,1713523840150,-708.11637796,0.00015522,2]
[322929988,1713523840161,-2095471.99802411,0.00015522,2]
[322929989,1713523840732,-788.19515341,0.00015522,2]
[322930068,1713523842933,-7108.87137147,0.00015522,2]
[322930070,1713523842987,-33387.8498,0.00015522,2]
[322930071,1713523843050,-1026.58360917,0.00015522,2]
[322930072,1713523843062,-981.20144854,0.00015522,2]
[322930073,1713523843074,-314859.99999955,0.00015522,2]
[322930074,1713523843208,-1700.21849511,0.00015522,2]
[322930075,1713523843268,-656.35,0.00015522,2]
[322930091,1713523845990,2533.72808082,0.000155,2]
[322930106,1713523846370,-319.50316463,0.00015522,2]
[322930107,1713523846381,-719.84129831,0.00015522,2]
[322930108,1713523846392,-371.88291753,0.00015522,2]
[322930109,1713523846403,-1324.8,0.00015522,2]
[322930110,1713523846414,-1873.43214159,0.00015522,2]
[322930111,1713523846483,-2800.27684168,0.00015522,2]
[322930112,1713523846527,-61200.0000001,0.00015522,2]
[322930113,1713523846539,-222895.69378402,0.00015522,2]
[322930115,1713523846581,-12617.75986817,0.00015522,2]
[322930116,1713523846594,-6569.46029,0.00015522,2]
[322930117,1713523846606,-2273.83887988,0.00015522,2]
[322930118,1713523846616,-452.908,0.00015522,2]
[322930119,1713523846627,-646.03539,0.00015522,2]
[322930120,1713523846691,-6561.23247747,0.00015522,2]
[322930121,1713523928313,961.3692135,0.00015429,2]
[322930122,1713523957415,555.12,0.00014866,2]
[322930123,1713523979229,164.08,0.0001611,15]
[322930124,1713523980767,4076.3,0.00014835,2]
[322930128,1713524108262,463.07,0.00014798,2]
[322930129,1713524120607,343967.20078462,0.000138,2]
[322930130,1713524120632,600000.0,0.000138,2]
[322930131,1713524120655,1931284.75168527,0.000138,2]
[322930132,1713524207889,150.0,0.00015429,2]
[322930133,1713524207911,4.17258646,0.00015429,2]
[322930134,1713524340879,187.21741354,0.00014817,2]
[322930135,1713524340902,3.47258646,0.00014817,2]
[322930136,1713524341346,150.0,0.00014891,2]
[322930137,1713524341366,40.69,0.00014891,2]
[322930138,1713524357322,150.0,0.00012903,2]
[322930139,1713524357344,92.71,0.00012903,2]
[322930140,1713524357518,57.29,0.00015167,2]
[322930141,1713524357539,150.0,0.00015167,2]
[322930142,1713524357562,35.42,0.00015167,2]
[322930143,1713524359430,150.0,0.00015091,2]
[322930144,1713524359452,41.60023848,0.00015091,2]
[322930145,1713524367353,150.0,0.00012343,2]
[322930146,1713524367373,97.82015446,0.00012343,2]
[322930149,1713524425066,150.0,0.00015342,2]
[322930150,1713524425086,67.101934,0.00015342,2]
[322930151,1713524433304,841.19806183,0.00015429,2]
[322930152,1713524467817,-222.52540556,0.00015503,2]
[322930153,1713524471144,-271.12519613,0.00015503,2]
[322930154,1713524472444,-150.0,0.00015503,2]
[322930155,1713524473617,-150.0,0.00015503,2]
[322930156,1713524474414,-150.0,0.00015503,2]
[322930157,1713524475436,-150.0,0.00015503,2]
[322930158,1713524476096,-150.0,0.00015503,2]
[322930159,1713524477148,-150.0,0.00015503,2]
[322930160,1713524478901,-150.0,0.00015503,2]
[322930161,1713524480006,-150.0,0.00015503,2]
[322930162,1713524480924,-82.20725411,0.00015503,2]
[322930163,1713524484167,164.08,0.0001611,15]
[322930164,1713524488312,150.0,0.00015502,2]
[322930165,1713524488332,150.0,0.00015502,2]
[322930166,1713524488353,150.0,0.00015502,2]
[322930167,1713524488374,150.0,0.00015502,2]
[322930168,1713524488394,150.0,0.00015502,2]
[322930169,1713524488414,150.0,0.00015502,2]
[322930170,1713524488435,150.0,0.00015502,2]
[322930171,1713524488835,150.0,0.00015502,2]
[322930172,1713524488857,150.0,0.00015502,2]
[322930173,1713524488877,150.0,0.00015502,2]
[322930174,1713524488897,150.0,0.00015502,2]
[322930175,1713524488918,150.0,0.00015502,2]
[322930176,1713524488940,142.4335044,0.00015502,2]
[322930177,1713524497695,150.0,0.00014924,2]
[322930178,1713524497718,46.54,0.00014924,2]
[322930179,1713524513597,150.0,0.0001549,2]
[322930180,1713524513617,150.0,0.0001549,2]
[322930181,1713524513638,150.0,0.0001549,2]
[322930182,1713524513658,150.0,0.0001549,2]
[322930183,1713524513679,150.0,0.0001549,2]
[322930184,1713524513700,150.0,0.0001549,2]
[322930185,1713524513720,150.0,0.0001549,2]
[322930186,1713524513742,150.0,0.0001549,2]
[322930187,1713524513765,150.0,0.0001549,2]
[322930188,1713524513787,150.0,0.0001549,2]
[322930189,1713524513886,150.0,0.0001549,2]
[322930190,1713524513907,150.0,0.0001549,2]
[322930191,1713524513930,195.6037264,0.0001549,2]
[322930192,1713524513957,1004.3962736,0.0001549,2]
[322930193,1713524515617,736.89139193,0.00015,2]
[322930194,1713524515786,1250.0,0.00015,2]
[322930195,1713524517073,555.9,0.00014813,2]
[322930196,1713524524032,181.14088756,0.00014924,2]
[322930197,1713524532683,150.0,0.00014924,2]
[322930198,1713524532704,11.39131675,0.00014924,2]
[322930199,1713524535855,242.06868325,0.00015,2]
[322930200,1713524535879,57.93131675,0.00015,2]
[322930201,1713524536817,600.0,0.00014744,2]
[322930202,1713524717216,195.39174,0.00015342,2]
[322930205,1713524784140,895.02,0.00015218,2]
[322930206,1713524816438,235.11,0.00012825,2]
[322930207,1713524816643,235.11,0.00015089,2]
[322930208,1713524872956,174.07,0.00015218,2]
[322930209,1713524884591,819.61712,0.0001537,2]
[322930216,1713524982515,736.04830411,0.00015422,2]
[322930219,1713525007029,555.28,0.00015218,2]
[322930220,1713525022471,175.852566,0.00015342,2]
[322930221,1713525023053,2052.44,0.00014761,2]
[322930254,1713525032761,-571.12002689,0.0001551,7]
[322930255,1713525032770,-150.0,0.0001551,2]
[322930256,1713525032779,-829.07022975,0.00015513,2]
[322930257,1713525032789,-5065.7813559,0.00015518,2]
[322930258,1713525032798,-425.6271531,0.00015518,2]
[322930259,1713525032807,-1566.17920671,0.00015519,2]
[322930260,1713525032817,-1015.23220683,0.0001552,2]
[322930261,1713525032826,-1774.29995857,0.0001552,2]
[322930262,1713525032836,-358.18328767,0.0001552,2]
[322930263,1713525032845,-1950.0,0.0001552,2]
[322930264,1713525032854,-155.1416761,0.00015521,2]
[322930265,1713525032863,-1602.03505828,0.00015521,2]
[322930266,1713525032873,-300.0,0.00015521,2]
[322930267,1713525032882,-300.0,0.00015521,2]
[322930268,1713525032891,-300.47084821,0.00015521,2]
[322930269,1713525032900,-300.0,0.00015521,2]
[322930270,1713525032909,-300.0,0.00015521,2]
[322930271,1713525032918,-3126.26,0.00015521,2]
[322930272,1713525032927,-53277.68963663,0.00015522,2]
[322930273,1713525032978,-1004.02797844,0.00015522,2]
[322930274,1713525032993,-689.30241408,0.00015522,2]
[322930275,1713525033050,-12822.57977612,0.00015522,2]
[322930276,1713525033062,-434.33736611,0.00015522,2]
[322930277,1713525033073,-4018.02751199,0.00015522,2]
[322930278,1713525033085,-6127.228,0.00015522,2]
[322930279,1713525033097,-3480.62,0.00015522,2]
[322930280,1713525033108,-346.082238,0.00015522,2]
[322930281,1713525033119,-696.77431602,0.00015522,2]
[322930282,1713525033162,-1086.98706325,0.00015522,2]
[322930283,1713525033173,-519.01089523,0.00015522,2]
[322930284,1713525033185,-387.51100691,0.00015522,2]
[322930285,1713525033196,-1400.0,0.00015522,2]
[322930286,1713525033245,-355.52000041,0.00015522,2]
[322930287,1713525033257,-1411.54365452,0.00015522,2]
[322930288,1713525033269,-253.73238569,0.00015522,2]
[322930289,1713525033280,-267.64326974,0.00015522,2]
[322930290,1713525033291,-286.18192272,0.00015522,2]
[322930291,1713525033302,-1800.68,0.00015522,2]
[322930292,1713525033313,-670.45812629,0.00015522,2]
[322930293,1713525038092,-977.69249947,0.00015522,2]
[322930294,1713525038306,-473.3383626,0.00015522,2]
[322930295,1713525038363,-1292.32677762,0.00015522,2]
[322930333,1713525040399,-518.55958462,0.00015509,2]
[322930334,1713525040409,-3005.47036271,0.00015522,2]
[322930335,1713525040421,-5128.81878843,0.00015522,2]
[322930336,1713525040439,-392.7047,0.00015522,2]
[322930337,1713525040501,-56173.24836775,0.00015522,2]
[322930338,1713525040513,-12492.51817066,0.00015522,2]
[322930339,1713525040524,-6588.48073,0.00015522,2]
[322930340,1713525040535,-500.49204,0.00015522,2]
[322930341,1713525040547,-648.22522683,0.00015522,2]
[322930342,1713525040586,-502.41328662,0.00015522,2]
[322930381,1713525043896,-648.48333336,0.00015522,2]
[322930382,1713525043908,-12547.04461993,0.00015522,2]
[322930383,1713525043919,-797.79161278,0.00015522,2]
[322930384,1713525043930,-1250.69004,0.00015522,2]
[322930385,1713525043988,-3438.47305573,0.00015522,2]
[322930386,1713525044030,-3343.6,0.00015522,2]
[322930387,1713525044043,-221899.62295523,0.00015522,2]
[322930388,1713525044266,-15792.05755162,0.00015522,2]
[322930397,1713525046262,-1215.92620364,0.00015522,2]
[322930398,1713525046274,-3264.2630295,0.00015522,2]
[322930399,1713525046285,-1649.32414159,0.00015522,2]
[322930400,1713525046361,-1275.51022965,0.00015522,2]
[322930401,1713525046372,-825.82620509,0.00015522,2]
[322930402,1713525046431,-620.1960599,0.00015522,2]
[322930408,1713525072491,150.0,0.00015338,2]
[322930411,1713525110329,18141.31,0.00014826,2]
[322930412,1713525150372,290.73284272,0.00015422,2]
[322930413,1713525169701,10960.67069635,0.00015422,2]
[322930414,1713525233176,1000.0,0.0001537,2]
[322930415,1713525259703,2184.36,0.00014993,2]
[322930416,1713525260744,5300.0,0.000155,2]
[322930417,1713525281530,546.78477453,0.00015453,2]
[322930418,1713525285410,193.82189514,0.00015453,2]
[322930419,1713525297222,233.9,0.00013073,2]
[322930420,1713525297420,233.9,0.00015337,2]
[322930421,1713525319183,158.26731,0.00015342,2]
[322930422,1713525326554,730.47798659,0.00015422,2]
[322930424,1713525374952,399.10725368,0.00015342,2]
[322930425,1713525394992,399.10725368,0.00015342,2]
[322930426,1713525413030,399.10725368,0.00015342,2]
[322930428,1713525427237,399.10725368,0.00015342,2]
[322930429,1713525427271,987.45,0.00014724,2]
[322930432,1713525450971,399.10725368,0.00015342,2]
[322930433,1713525463140,154.17258646,0.00015422,2]
[322930434,1713525467493,555.77,0.00014724,2]
[322930435,1713525472947,399.10725368,0.00014724,2]
[322930436,1713525490938,399.10725368,0.00014724,2]
[322930437,1713525511277,226.03628277,0.00014724,2]
[322930438,1713525516104,173.74,0.00014856,2]
[322930439,1713525516264,173.74,0.0001501,2]
[322930440,1713525516489,173.74,0.00015165,2]
[322930441,1713525516780,173.74,0.0001532,2]
[322930442,1713525516933,173.74,0.00015475,2]
[322930443,1713525537688,5000.0,0.00023,30]
[322930444,1713525551050,4000.0,0.00023,30]
[322930445,1713525562123,5000.0,0.00023,30]
[322930446,1713525580439,1079.86838,0.0001537,2]